Cogmind - Beta 13 @@@ ROGUE MODE // 2024.06.16 @ 10:28:16 Player: Minty Result: Self-destructed Performance ------------- Evolutions (1) 500 Regions Visited (2) 400 Robots Destroyed (8) 40 Value Destroyed (127) 127 Prototype IDs (1) 20 Alien Tech Used (0) 0 Bonus (200) 200 TOTAL SCORE: 1287 Bonus ------- Pacifist 200 Cogmind --------- Core Integrity 345/400 Matter 133/300 Energy 280/280 System Corruption 0% Temperature Danger (409) Movement Treading (160) Location -9/Materials Parts ------- > --- POWER (1) -------- Heavy Ion Engine > --- PROPULSION (2) --- Light Treads Light Treads > --- UTILITY (2) ------ Small Storage Unit Propulsion Shielding > --- WEAPON (4) ------- Improved Light Cannon Improved Light Cannon Improved Light Cannon Improved Light Cannon > --- INVENTORY (8) ---- Ion Engine Aluminum Leg Aluminum Leg Wheel Compact Wheel Propulsion Shielding Propulsion Shielding Grenade Launcher Peak State ------------ > --- POWER ------------ Heavy Ion Engine > --- PROPULSION ------- Light Treads Light Treads > --- UTILITY ---------- Small Storage Unit Propulsion Shielding > --- WEAPON ----------- Improved Light Cannon Improved Light Cannon Improved Light Cannon Improved Light Cannon > --- INVENTORY -------- Ion Engine Aluminum Leg Aluminum Leg Wheel Compact Wheel Propulsion Shielding Propulsion Shielding Grenade Launcher [Rating: 15] Favorites ----------- Power Ion Engine Engine Ion Engine Propulsion Light Treads Treads Light Treads Leg Aluminum Leg Utility Small Storage Unit Storage Small Storage Unit Protection Propulsion Shielding Weapon Improved Light Cannon Ballistic Gun Assault Rifle Ballistic Cannon Improved Light Cannon Launcher Grenade Launcher Build | -11 -10 -9 ------- Run | Yrd Mat Mat Slots Evolved 2 | . . 2 Power . | . . . Propulsion . | . . . Utility . | . . . Weapon 2 | . . 2 Parts Attached 10 | . 3 7 Power 1 | . . 1 Engine 1 | . . 1 Core . | . . . Reactor . | . . . Propulsion 2 | . . 2 Treads 2 | . . 2 Leg . | . . . Wheel . | . . . Hover . | . . . Flight . | . . . Utility 1 | . 1 . Device . | . . . Storage . | . . . Processor . | . . . Hackware . | . . . Protection 1 | . 1 . Artifact . | . . . Weapon 6 | . 2 4 Energy Gun . | . . . Energy Cannon . | . . . Ballistic Gun . | . . . Ballistic Cannon 5 | . 2 3 Launcher 1 | . . 1 Special Weapon . | . . . Impact Weapon . | . . . Slashing Weapon . | . . . Piercing Weapon . | . . . Special Melee Weapon . | . . . Unidentified Prototypes 1 | . . 1 Parts Lost . | . . . Power . | . . . Propulsion . | . . . Utility . | . . . Weapon . | . . . Highest Loss Streak . | . . . To Critical Strikes . | . . . Average Slot Usage (%) 97 | . 93 100 Engine 12 | . 14 11 Treads 12 | . . 22 Leg 11 | . 28 . Storage 12 | . 14 11 Protection 10 | . 9 11 Ballistic Gun 4 | . 11 . Ballistic Cannon 31 | . 15 43 Naked Turns . | . . . Heaviest Build 30 | 14 19 30 Greatest Support 40 | 20 20 40 Greatest Overweight (x) . | . . . Average Overweight (x) . | . . . Largest Inventory Capacity 8 | . 8 8 Average Capacity 8 | . 8 8 Most Carried 8 | . 8 8 Average Carried 7 | . 7 7 Final Capacity 8 | 8 8 8 Final Carried 8 | 6 8 8 Class Distribution -------------------- 63% | Tank 36% | Mutant Dominant Class ---------------- Mutant | -10/Materials Tank | -9/Materials Resources | -11 -10 -9 ----------- Run | Yrd Mat Mat Matter Collected 274 | 200 . 74 Remotely . | . . . Salvage Created 126 | . . 126 Parts 17 | . . 17 Haulers Intercepted 1 | . . 1 Recyclers Shooed . | . . . Parts Field Recycled . | . . . Retrieved Matter . | . . . Parts Self-Destructed . | . . . Prevented . | . . . Kills | -11 -10 -9 ------- Run | Yrd Mat Mat Combat Hostiles Destroyed 4 | . . 4 Cannons 2 | . . 2 AOE 2 | . . 2 Classes Destroyed 5 | . . 5 Builder 1 | . . 1 Hauler 1 | . . 1 Watcher 2 | . . 2 Swarmer 2 | . . 2 Grunt 2 | . . 2 Best Kill Streak 5 | . . 5 Combat Bots Only 2 | . . 2 Max Kills in Single Turn 2 | . . 2 Gunslinging . | . . . Exploded 1 | . . 1 Melee . | . . . Uniques/NPCs Destroyed . | . . . Combat | -11 -10 -9 -------- Run | Yrd Mat Mat Hostile Shots Fired 50 | . . 50 Missed 16 | . . 16 Damage Taken 334 | . . 334 Core 55 | . . 55 Absorbed by Shields . | . . . Redirected to Shielding 21 | . . 21 Core Remaining (%) 100 | 100 100 . Volleys Fired 11 | . . 11 Largest 4 | . . 4 Hottest 156 | . . 156 Shots Fired 32 | . . 32 Gun . | . . . Cannon 29 | . . 29 Launcher 3 | . . 3 Special . | . . . Kinetic 29 | . . 29 Thermal . | . . . Explosive 3 | . . 3 Electromagnetic . | . . . Robot Hit Streak 4 | . . 4 Robot Miss Streak 5 | . . 5 Penetration Max . | . . . Secondary Targets . | . . . Shots Hit Robots 14 | . . 14 Core Hits 10 | . . 10 Critical Kills . | . . . Critical Parts Destroyed . | . . . Critical Strikes 1 | . . 1 Blast 1 | . . 1 Melee Attacks . | . . . Impact . | . . . Slashing . | . . . Piercing . | . . . Sneak Attacks . | . . . Combat Hostiles . | . . . Follow-up Attacks . | . . . Damage Inflicted 510 | . . 510 Guns . | . . . Cannons 333 | . . 333 Explosions 170 | . . 170 Melee . | . . . Ramming 7 | . . 7 Kinetic 333 | . . 333 Thermal . | . . . Explosive 170 | . . 170 Electromagnetic . | . . . Impact . | . . . Slashing . | . . . Piercing . | . . . Highest Corruption . | . . . Average Corruption . | . . . Corruption Purged . | . . . Corruption Blocked . | . . . Overload Shots . | . . . Overflow Damage 15 | . . 15 Projectiles . | . . . Explosions 15 | . . 15 Melee . | . . . Knockbacks 2 | . . 2 Impact . | . . . Kinetic 2 | . . 2 Secondary . | . . . Self-Inflicted Damage . | . . . Shots . | . . . Rammed 1 | . . 1 Targets Rammed 2 | . . 2 Kicked . | . . . Crushed 1 | . . 1 Highest Temperature 400 | . . 400 Average Temperature 192 | . . 192 Received Heat Transfer 42 | . . 42 Effects 2 | . . 2 Shutdowns 1 | . . 1 Short Circuit 1 | . . 1 Siege Activations . | . . . Robots Corrupted . | . . . Combat Hostiles . | . . . Parts Fried . | . . . Impact Corruptions . | . . . Robots Melted . | . . . Combat Hostiles . | . . . Parts Melted . | . . . Heat Transferred . | . . . Parts Sabotaged . | . . . Parts Stolen . | . . . Parts Stripped . | . . . Power Chain Reactions . | . . . Alert | -11 -10 -9 ------- Run | Yrd Mat Mat Peak Influence 131 | . . 131 Initial . | . . . Average 24 | . . 40 Maximum Alert Level . | . . . Low Security (%) 100 | . 100 100 Level 1 . | . . . Level 2 . | . . . Level 3 . | . . . Level 4 . | . . . Level 5 . | . . . High Security . | . . . Max Security . | . . . Squads Dispatched . | . . . Investigation . | . . . Extermination . | . . . Reinforcement . | . . . Assault . | . . . Garrison . | . . . Intercept . | . . . Searches Triggered . | . . . Construction Impeded . | . . . Haulers Reinforced . | . . . Active Scanning Responses . | . . . Cargo Convoy Interrupts . | . . . Stealth | -11 -10 -9 --------- Run | Yrd Mat Mat Distress Signals 1 | . . 1 Communications Jammed . | . . . Distress Signals . | . . . Times Spotted 10 | . . 10 Peak Tracking Total 7 | . . 7 Tactical Retreats . | . . . Traps | -11 -10 -9 ------- Run | Yrd Mat Mat Traps Triggered . | . . . Indirectly . | . . . Trap Hack Attempts . | . . . Triggered . | . . . Disarmed . | . . . Reprogrammed . | . . . Reused . | . . . Traps Extracted . | . . . Installed . | . . . Triggered . | . . . Machines | -11 -10 -9 ---------- Run | Yrd Mat Mat Machines Disabled . | . . . Max in Single Turn . | . . . Machines Repaired . | . . . Machines Dismantled . | . . . Machines Sabotaged . | . . . Overloaded Fab Kills . | . . . Hacking | -11 -10 -9 --------- Run | Yrd Mat Mat Machines Accessed 1 | . . 1 Terminals 1 | . . 1 Fabricators . | . . . Repair Stations . | . . . Recycling Units . | . . . Scanalyzers . | . . . Garrison Access . | . . . Total Hacks 4 | . . 4 Successful . | . . . Failed 4 | . . 4 Catastrophic . | . . . Database Lockouts . | . . . Manual . | . . . Terminals 4 | . . 4 Fabricators . | . . . Repair Stations . | . . . Recycling Units . | . . . Scanalyzers . | . . . Garrison Access . | . . . Terminal Hacks . | . . . Fabricator Hacks . | . . . Repair Station Hacks . | . . . Recycling Unit Hacks . | . . . Scanalyzer . | . . . Garrison Access Hacks . | . . . Unauthorized Hacks . | . . . Terminals . | . . . Fabricators . | . . . Repair Stations . | . . . Recycling Units . | . . . Scanalyzers . | . . . Garrison Access . | . . . Data Cores Recovered . | . . . Used . | . . . Hacking Detections 1 | . . 1 Full Trace Events 1 | . . 1 Feedback Events . | . . . Feedback Blocked . | . . . Robot Schematics Acquired . | . . . Robots Built . | . . . Authchips . | . . . Time . | . . . Total Robot Build Rating . | . . . Part Schematics Acquired . | . . . Parts Built . | . . . Authchips . | . . . Time . | . . . Total Part Build Rating . | . . . Parts Repaired . | . . . Time . | . . . Parts Recycled . | . . . Recycled Matter . | . . . Retrieved Matter . | . . . Retrieved Components . | . . . Parts Scanalyzed . | . . . Part Schematics Acquired . | . . . Parts Damaged . | . . . Bothacking | -11 -10 -9 ------------ Run | Yrd Mat Mat Used RIF Installer . | . . . Robots Hacked . | . . . Non-combat . | . . . Combat . | . . . Robot Hacks Applied . | . . . Relay Couplers Released . | . . . Fabnet Peak Effective % . | . . . Robots Rewired . | . . . Allies Hacked . | . . . Hacks Repelled . | . . . Allies | -11 -10 -9 -------- Run | Yrd Mat Mat Total Allies . | . . . Largest Group . | . . . Highest-Rated Group . | . . . Highest-Rated Ally . | . . . Total Orders . | . . . Ally Attacks . | . . . Total Damage . | . . . Kills . | . . . Allies Corrupted . | . . . Allies Melted . | . . . Intel | -11 -10 -9 ------- Run | Yrd Mat Mat Robot Analysis Total . | . . . Derelict Logs Recovered . | . . . Drone Launches . | . . . Drone Recoveries . | . . . Exploration | -11 -10 -9 ------------- Run | Yrd Mat Mat Turns Passed 293 | . 119 174 Spaces Moved 169 | 1 91 77 Core . | . . . Treads 77 | . . 77 Legs 92 | 1 91 . Wheels . | . . . Hover . | . . . Flight . | . . . Fastest Speed 120 | 120 120 160 Average Speed 138 | 120 120 160 Slowest Speed 160 | 120 120 160 Overloaded Moves . | . . . Propulsion Burnouts . | . . . Robots Hopped . | . . . Cave-ins Triggered . | . . . Exploration Rate (%) 11 | 2 19 13 Regions Visited 2 Branch Regions . Pre-discovered Areas . | . . . Known Exits Taken . | . . . Unknown Exits Taken 2 | 1 1 . Scrap Searched . | . . . Spaces Dug . | . . . Terrain Destroyed 24 | . . 24 Melee . | . . . Projectile 5 | . . 5 AOE 19 | . . 19 Terrain Rammed . | . . . Walls Destroyed . | . . . Machines Disabled . | . . . Actions | -11 -10 -9 --------- Run | Yrd Mat Mat Total 203 | . 101 102 Wait 2 | . . 2 Move 167 | . 90 77 Hop . | . . . Pick Up 6 | . 4 2 Fast Attach 4 | . 3 1 Attach 2 | . . 2 Detach . | . . . Swap 4 | . . 4 Drop 5 | . 4 1 Fire 11 | . . 11 Melee . | . . . Ram . | . . . Kick . | . . . Crush 2 | . . 2 Escape Stasis . | . . . Rewire . | . . . Trap . | . . . Miscellaneous . | . . . Route ------- -11/Scrapyard -10/Materials -9/Materials History --------- Turn | Location | Event 1 | -11/Scrapyard | Discovered new exit (range 0) 1 | -11/Scrapyard | Entered Materials 113 | -10/Materials | Discovered new exit (range 7) 120 | -10/Materials | Entered another Materials area 120 | -9/Materials | Evolved 2 slots: Weapon x2 294 | -9/Materials | Self-destructed Last Messages --------------- 00278_ U-05 Engineer lays Concrete. 00279_ U-05 Engineer builds a Wall. 00279_ U-05 Engineer destroyed. 00280_ The unstable cave ceiling collapses. 00280_ K-01 Serf collects debris. 00281_ U-05 Engineer lays Concrete. 00282_ Imp. Light Cannon broken. 00282_ Overheating: Short circuit. 00282_ U-05 Engineer lays Concrete. 00282_ R-06 Scavenger collects Flight Unit. 00282_ U-05 Engineer lays Concrete. 00283_ U-05 Engineer lays Concrete. 00283_ K-01 Serf destroyed. 00283_ U-05 Engineer builds a Wall. 00286_ R-06 Scavenger collects Lgt. Assault Rifle. 00287_ U-05 Engineer lays Concrete. 00291_ R-06 Scavenger collects Flight Unit. 00291_ U-05 Engineer lays Concrete. 00292_ Power failure, Hvy. Ion Engine shutdown. 00292_ U-05 Engineer lays Concrete. Map ----- +----------------------------------------------------+ | ?????????????????????????????????????????????????? | | ?????????????????????????????????????????????????? | | ?????????????????????????????????????????????????? | | ?????????????????????????????????????????????????? | | ?????????????????????????????????????????????????? | | ?????????????????????????????????????????????????? | | ?????????????????????????????????????????????????? | | ?????????????????????????????????????????????????? | | ?????????????????????????????????????????????????? | | ???????????????????????? % ??????????????????????? | | ???????????????????????? % ###???????????????????? | | ???????????????????????? !???????????????????? | | ??????????????????????## us% !!??????????????????? | | ?????????????????????###% % [???????????????????? | | ?????????????????????# % % [???????????????????? | | ?????????????????????# rY ????????????????????? | | ?????????????????????# u ????????????????????? | | ?????????????????????? *!=##???????????????????? | | ?????????????????????? %=%* #???????????????????? | | ???????????????????????#!%%# #???????????????????? | | ??????????????????????? !%# ????????????????????? | | ???????????????????????# =%#?????????????????????? | | ???????????????????????# !!#?????????????????????? | | ???????????????????????+^ #############?????????? | | ???????????????????????# ????????? | | ???????????????????????# @ ????????? | | ???????????????????????# w ????????? | | ???????????????????????# ###+####### #?????????? | | ???????????????????????# #??? ????????????????? | | ???????????????????????# #?????" ??????????????? | | ???????????????????????# #?????? #?????????????? | | ???????????????????????# #?????????????????????? | | ???????????????????????# #?????????????????????? | | ???????????????????????# #?????????????????????? | | ???????????????????????# #?????????????????????? | | ???????????????????????# #?????????????????????? | | ???????????????????????# #?????????????????????? | | ???????????????????????# #?????????????????????? | | ??????????????#######??# #?????????????????????? | | ??????????????# #### #?????????????????????? | | ??????????????# #?????????????????????? | | ??????????????# #?????????????????????? | | ??????????????# *![* #?????????????????????? | | ??????????????# [ [########?????????????????????? | | ??????????????##[= ##????????????????????????????? | | ????????########![%#?????????????????????????????? | | ???????# #=**#?????????????????????????????? | | ???????#""" # #?????????????????????????????? | | ???????#""" # #?????????????????????????????? | | ???????#""" # #?????????????????????????????? | +----------------------------------------------------+ Best States ------------- Heat Dissipation 28 Energy Generation 14 Energy Capacity 280 Matter Stores 300 Matter Capacity 300 Sight Range 16 Terrain Scan Density 10 Propulsion Shielding 33 Evasion (%) 55 Recoil Reduction 2 Item Schematics ----------------- None Robot Schematics ------------------ None Fabricated ------------ Nothing Alien Tech Used ----------------- None Achievements -------------- None Challenges ------------ None Game ------ Seed DispersionInsulationSaw Manual? 0 Play Time 00:02:49 Cumulative 764.8 hours Start 2024.06.15 @ 18:59:06 End 2024.06.16 @ 10:28:16 Sessions 5 Manual Loads 0 Difficulty Rogue Special Mode None Game No. 863 Rogue 585 Adventurer 124 Explorer 154 Win Type - Total 29 Types 23/0/4/1/0/0/0/1/0 Lore% 84 Gallery% 92 Achievement% 77 Wizard Run 0 Options --------- Layout 0 ASCII 0 Keyboard 1 Movement Numpad Keybinds 0 Fullscreen 2 Font 18/Terminus Map View 76x50 Zoom Use 0% Tactical HUD 1 Map Filters NONE Filters SHIFT_HUE(360) Steam 1 RUN: e34c2916-728f-431e-84a8-0ae5de71aabe